bitfinex-derivatives/quotes_SOLF0:USTF0_20250109
["timestamp","ask_amount","ask_price","bid_price","bid_amount"]
[1736462628277,2.673,187.08,187.04,7.91467442]
[1736462630784,7.91467442,187.11,187.04,7.91467442]
[1736462630785,2.6733,187.07,187.04,7.91467442]
[1736462631686,2.6733,187.06,187.04,7.91467442]
[1736462633184,7.91467442,187.11,187.04,7.91467442]
[1736462633493,2.6734,187.05,187.04,7.91467442]
[1736462633784,7.91467442,187.1,186.99,7.17613872]
[1736462633987,7.91467442,187.1,187.02,7.91467442]
[1736462634986,4.6267,187.16,186.99,7.17613872]
[1736462634987,7.91467442,187.11,187.04,7.91467442]
[1736462635184,2.6734,187.06,187.04,7.91467442]
[1736462636985,2.6734,187.05,187.04,7.91467442]
[1736462637688,7.91467442,187.09,187.01,7.91467442]
[1736462637886,3.1759,187.08,187.01,7.91467442]
[1736462638089,2.6738,187.03,187.01,7.91467442]
[1736462639388,2.6741,187.01,187.0,7.91467442]
[1736462639687,7.91467442,187.07,186.98,107.06118174]
[1736462639886,7.91467442,187.07,186.98,114.97585616]
[1736462640283,7.91467442,187.03,186.96,7.91467442]
[1736462640483,2.6747,186.96,186.95,28.23893428]
[1736462640782,4.9,186.98,186.93,7.17613872]
[1736462640991,2.6751,186.93,186.92,5.11009556]
[1736462641190,7.91467442,186.93,186.91,76.32529361]
[1736462641379,7.91467442,186.93,186.91,60.68759361]
[1736462641584,7.91467442,186.93,186.84,7.91467442]
[1736462641783,7.91467442,186.91,186.84,7.91467442]
[1736462642485,7.91467442,186.91,186.81,60.68759361]
[1736462642689,7.91467442,186.89,186.82,7.91467442]
[1736462644180,2.676,186.87,186.82,7.91467442]
[1736462645291,4.9,186.89,186.82,7.91467442]
[1736462646490,2.676,186.88,186.82,7.91467442]
[1736462647086,2.676,186.87,186.82,7.91467442]
[1736462650099,4.9,186.89,186.82,7.91467442]
[1736462650300,2.6762,186.86,186.82,7.91467442]
[1736462654094,4.9,186.89,186.82,7.91467442]
[1736462654295,2.6763,186.85,186.82,7.91467442]
[1736462657995,2.6762,186.86,186.82,7.91467442]
[1736462660399,2.6762,186.86,186.81,2.6769]
[1736462660598,2.6762,186.86,186.82,7.91467442]
[1736462662999,2.6763,186.85,186.82,7.91467442]
[1736462667703,1.6456,186.96,186.84,7.91467442]
[1736462667904,7.91467442,186.91,186.84,7.91467442]
[1736462668898,2.6762,186.86,186.84,7.91467442]
[1736462669300,6.5403888,186.97,186.84,7.91467442]
[1736462669301,4.9,186.94,186.84,7.91467442]
[1736462669507,7.91467442,186.95,186.88,7.91467442]
[1736462670307,7.91467442,186.95,186.86,2.6762]
[1736462670508,7.91467442,186.95,186.87,7.91467442]
[1736462671203,7.91467442,186.93,186.85,2.6763]
[1736462671402,7.91467442,186.93,186.86,7.91467442]
[1736462671600,9.9353888,186.97,186.88,7.91467442]
[1736462671804,5.0353888,186.97,186.9,7.91467442]
[1736462672003,12.95006322,186.97,186.9,7.91467442]
[1736462672204,2.6752,186.93,186.9,7.91467442]
[1736462672609,7.91467442,186.95,186.87,7.91467442]
[1736462674211,2.6753,186.92,186.87,7.91467442]
[1736462675910,1.6037,187.02,186.91,7.91467442]
[1736462676117,7.91467442,186.99,186.91,7.91467442]
[1736462676407,7.91467442,186.99,186.89,7.91467442]
[1736462676610,7.91467442,186.99,186.9,1.6337]
[1736462676811,7.91467442,186.97,186.9,1.6337]
[1736462677310,2.675,186.94,186.9,1.6337]
[1736462679211,2.6747,186.97,186.93,7.91467442]
[1736462679515,7.91467442,186.98,186.91,7.91467442]
[1736462680108,2.6747,186.96,186.91,7.91467442]
[1736462682411,2.6747,186.96,186.9,1.6337]
[1736462683513,88.7838883,187.16,186.95,7.91467442]
[1736462683711,7.91467442,187.04,186.97,7.91467442]
[1736462683910,10.58827442,187.04,186.98,2.6744]
[1736462684110,7.91467442,187.04,186.97,7.91467442]
[1736462685213,7.91467442,187.04,186.97,10.58917442]
[1736462685214,10.58827442,187.04,186.97,10.58917442]
[1736462686515,2.6736,187.04,186.97,10.58917442]
[1736462687414,2.6737,187.03,186.97,10.58917442]
[1736462691714,3.1181,187.09,186.95,2.6748]
[1736462691715,2.674,187.01,186.95,2.6748]
[1736462692915,7.91467442,187.02,186.94,1.4926]
[1736462692916,2.6743,186.99,186.94,1.4926]
[1736462693117,7.91467442,187.0,186.91,7.91467442]
[1736462694213,2.6746,186.97,186.92,2.6753]
[1736462696216,7.91467442,187.0,186.91,7.91467442]
[1736462696523,7.91467442,186.96,186.9,1.6337]
[1736462697219,7.91467442,186.96,186.88,2.6757]
[1736462697920,7.91467442,186.94,186.88,2.6757]
[1736462699225,2.6752,186.93,186.88,2.6757]
[1736462700722,7.91467442,186.94,186.87,7.91467442]
[1736462701827,7.91467442,186.94,186.86,5.897]
[1736462702327,2.6754,186.91,186.86,5.897]
[1736462702925,2.6754,186.91,186.87,2.676]
[1736462704330,2.6754,186.91,186.86,5.8971]
[1736462704728,2.6754,186.91,186.87,7.91467442]
[1736462707734,2.6753,186.92,186.87,10.59057442]
[1736462717242,2.6753,186.92,186.88,2.6759]
[1736462719743,2.6753,186.92,186.89,7.91467442]
[1736462722748,2.6752,186.93,186.89,7.91467442]
[1736462722947,1.4875,187.03,186.9,2.6755]
[1736462723246,7.91467442,186.98,186.91,7.91467442]
[1736462723547,7.91467442,186.98,186.91,9.46857442]
[1736462724345,2.6749,186.95,186.91,9.46857442]
[1736462725944,4.9,187.02,186.93,7.91467442]
[1736462726155,2.6747,186.97,186.93,7.91467442]
[1736462726649,2.6747,186.97,186.91,9.46857442]
[1736462730950,2.6747,186.97,186.93,7.91467442]
[1736462732247,7.91467442,187.0,186.93,7.91467442]
[1736462732447,4.5888,187.03,186.93,7.91467442]
[1736462732650,7.91467442,187.01,186.93,7.91467442]
[1736462733248,2.6745,186.98,186.93,7.91467442]
[1736462742858,2.6745,186.98,186.92,2.6753]
[1736462743057,10.58917442,186.98,186.92,2.6753]
[1736462744258,2.6749,186.96,186.91,1.5539]
[1736462744757,2.6749,186.95,186.91,1.5539]
[1736462744959,7.91467442,186.96,186.91,1.5539]
[1736462745360,2.6751,186.94,186.91,1.5539]
[1736462746563,2.6742,187.0,186.91,4.2292]
[1736462746858,7.91467442,186.99,186.91,1.5539]
[1736462747563,2.6746,186.97,186.91,1.5539]
[1736462747759,7.91467442,186.99,186.91,1.5539]
[1736462749063,2.6748,186.96,186.91,1.5539]
[1736462749867,7.91467442,186.97,186.87,107.13343917]
[1736462750165,7.91467442,186.97,186.88,7.91467442]
[1736462751566,2.6752,186.93,186.88,7.91467442]
[1736462752265,2.6753,186.92,186.87,117.72411359]
[1736462757169,2.6755,186.91,186.87,115.04811359]
[1736462761873,7.91467442,186.93,186.87,115.04811359]
[1736462762074,2.6753,186.92,186.87,117.72401359]
[1736462763574,2.6752,186.93,186.88,2.6758]
[1736462764472,7.91467442,186.94,186.87,115.04811359]
[1736462764773,2.6754,186.92,186.87,115.04811359]
[1736462765775,2.6756,186.91,186.85,2.6762]
[1736462766075,2.6756,186.91,186.84,7.91467442]
[1736462766373,2.6756,186.91,186.85,5.52587177]
[1736462766975,2.6756,186.91,186.84,7.91467442]
[1736462767176,2.6756,186.91,186.86,2.6762]
[1736462767967,7.91467442,186.93,186.86,2.6762]
[1736462768271,2.6756,186.9,186.86,2.6762]
[1736462768975,2.6756,186.9,186.85,2.6763]
[1736462770082,2.6756,186.9,186.86,10.59077442]
[1736462770673,7.91467442,186.93,186.86,7.91467442]
[1736462770879,2.6753,186.92,186.87,2.676]
[1736462771275,2.6753,186.92,186.87,8.20090086]
[1736462771482,2.6752,186.93,186.88,10.59057442]
[1736462776984,4.9,186.97,186.88,7.91467442]
[1736462777184,10.58927442,186.98,186.91,2.6754]
[1736462778583,2.6746,186.97,186.91,2.6754]
[1736462779588,2.6746,186.97,186.92,2.6753]
[1736462779979,2.6746,186.97,186.9,7.91467442]
[1736462780683,2.6747,186.96,186.91,2.6754]
[1736462782384,2.6747,186.96,186.9,7.91467442]
[1736462782385,7.91467442,186.96,186.9,7.91467442]
[1736462782590,2.6749,186.95,186.9,2.6755]
[1736462782887,7.91467442,186.96,186.89,1.505]
[1736462783088,2.6751,186.94,186.89,1.505]
[1736462784689,2.6752,186.93,186.89,1.505]
[1736462787190,7.91467442,186.96,186.9,5.53197742]
[1736462787383,2.6753,186.92,186.9,5.53197742]
[1736462787988,2.6753,186.92,186.89,1.505]
[1736462793000,2.6753,186.92,186.88,2.6757]
[1736462793793,2.6755,186.91,186.87,7.91467442]
[1736462794302,2.6755,186.91,186.88,5.53841606]
[1736462794503,2.6753,186.92,186.88,5.53841606]
[1736462794902,7.91467442,186.95,186.87,7.91467442]
[1736462796203,2.6755,186.91,186.88,5.54562257]
[1736462796705,2.6755,186.91,186.87,7.91467442]
[1736462797909,2.6755,186.91,186.87,10.59057442]
[1736462798109,2.6755,186.91,186.88,5.54353101]
[1736462798510,2.6753,186.93,186.88,8.21923101]
[1736462798710,7.91467442,186.95,186.88,8.21923101]
[1736462799010,7.91467442,186.95,186.88,2.6757]
[1736462799611,2.6754,186.92,186.88,2.6757]
[1736462805616,2.6754,186.92,186.87,7.91467442]
[1736462805814,2.6754,186.92,186.89,2.6757]
[1736462820719,7.91467442,186.99,186.89,2.6757]
[1736462820919,2.6752,186.93,186.89,2.6757]
[1736462823629,2.6752,186.93,186.85,38.36082842]
[1736462823833,2.6752,186.93,186.9,2.6755]
[1736462831731,2.6748,186.96,186.92,2.6752]
[1736462831935,7.91467442,187.0,186.87,7.91467442]
[1736462832131,7.91467442,187.0,186.9,7.91467442]
[1736462832446,11.13837442,187.02,186.92,7.91467442]
[1736462833233,2.6742,187.0,186.95,2.6749]
[1736462834138,2.674,187.01,186.97,2.6745]
[1736462836539,2.674,187.01,186.94,7.91467442]
[1736462836739,2.674,187.01,186.96,2.6747]
[1736462838344,11.13837442,187.02,186.96,2.6747]
[1736462838641,2.6742,187.0,186.96,2.6747]
[1736462840739,2.6742,187.0,186.95,2.6748]
[1736462841643,11.13837442,187.02,186.95,2.6748]
[1736462841844,2.6743,186.99,186.95,2.6748]
[1736462842646,2.6743,186.99,186.94,10.58967442]
[1736462845147,2.6744,186.98,186.94,10.58967442]
[1736462845546,2.6744,186.98,186.94,2.675]
[1736462847351,2.6746,186.97,186.94,2.675]
[1736462849251,2.6748,186.96,186.93,10.58977442]
[1736462850752,7.91467442,187.0,186.93,7.91467442]
[1736462850952,2.6749,186.95,186.93,7.91467442]
[1736462851655,2.6749,186.95,186.92,2.6753]
[1736462852654,2.6749,186.95,186.91,2.6754]
[1736462852856,2.6749,186.95,186.9,11.06497442]
[1736462854156,2.6749,186.95,186.92,2.6753]
[1736462854861,2.6749,186.95,186.92,10.58997442]
[1736462860055,2.6747,186.97,186.92,7.91467442]
[1736462861461,2.6749,186.95,186.9,11.06497442]
[1736462861661,7.91467442,186.98,186.9,13.74047442]
[1736462863960,2.675,186.95,186.9,11.06497442]
[1736462864864,2.675,186.94,186.9,11.06497442]
[1736462866153,2.675,186.94,186.9,7.91467442]
[1736462866562,2.6754,186.92,186.87,9.91614407]
[1736462866859,7.91467442,186.96,186.88,13.44784713]
[1736462867461,7.91467442,186.96,186.88,7.91467442]
[1736462868568,2.6756,186.9,186.86,10.59077442]
[1736462868968,4.9,186.96,186.86,7.91467442]
[1736462869172,2.6757,186.9,186.86,7.91467442]
[1736462869374,2.6757,186.9,186.87,5.5348657]
[1736462869867,2.6757,186.9,186.86,10.59077442]
[1736462874571,2.6758,186.89,186.87,7.91467442]
[1736462874870,7.91467442,186.94,186.87,7.91467442]
[1736462876465,7.91467442,186.94,186.85,1.4969]
[1736462876671,7.91467442,186.94,186.85,9.41157442]
[1736462877470,2.6751,186.92,186.85,9.41157442]
[1736462877670,7.91467442,186.94,186.85,9.41157442]
[1736462878174,2.6757,186.88,186.85,9.41157442]
[1736462881078,2.6757,186.88,186.85,4.1729]
[1736462882676,2.6758,186.87,186.84,2.6761]
[1736462882973,2.6758,186.87,186.83,7.91467442]
[1736462883676,2.6759,186.86,186.83,10.59087442]
[1736462885577,2.6759,186.86,186.83,2.6762]
[1736462885977,2.6758,186.87,186.83,2.6762]
[1736462886680,2.6758,186.87,186.79,3.24]
[1736462886976,2.6758,186.87,186.82,2.6764]
[1736462887774,2.6758,186.87,186.82,10.59107442]
[1736462889278,2.6758,186.87,186.82,2.6764]
[1736462889477,2.6758,186.87,186.82,10.59107442]
[1736462889877,2.6759,186.86,186.82,10.59107442]
[1736462891982,2.6759,186.86,186.84,7.91467442]
[1736462892486,2.6759,186.86,186.82,2.6764]
[1736462892686,2.6759,186.86,186.84,7.91467442]
[1736462894288,2.6759,186.86,186.82,10.59107442]
[1736462898483,2.6756,186.89,186.84,7.91467442]
[1736462898692,4.9,186.9,186.84,7.91467442]
[1736462899790,2.6752,186.91,186.84,7.91467442]
[1736462900095,4.9,186.92,186.84,7.91467442]
[1736462900486,2.6756,186.89,186.83,2.6762]
[1736462900691,12.81467442,186.92,186.84,7.91467442]
[1736462901892,2.6758,186.87,186.82,10.59107442]
[1736462903492,2.6758,186.87,186.82,2.6764]
[1736462903692,2.6758,186.87,186.82,10.59107442]
[1736462909896,2.6759,186.86,186.82,10.59107442]
[1736462911292,2.6759,186.86,186.82,2.6764]
[1736462916099,2.6761,186.85,186.8,10.59127442]
[1736462916504,2.6761,186.85,186.8,7.91467442]
[1736462916799,2.6761,186.85,186.81,8.21534742]
[1736462917191,2.6761,186.85,186.82,5.53884742]
[1736462917898,2.6761,186.85,186.81,2.6765]
[1736462918599,2.6761,186.85,186.82,5.54125323]
[1736462919290,2.6761,186.85,186.81,2.6765]
[1736462920601,2.6761,186.85,186.82,5.54730525]
[1736462921101,2.6761,186.85,186.81,2.6765]
[1736462922102,2.6761,186.85,186.82,5.55249955]
[1736462922507,2.6761,186.85,186.83,5.55249955]
[1736462923103,2.6761,186.85,186.81,2.6765]
[1736462923404,2.6761,186.85,186.82,5.55374116]
[1736462923799,2.6761,186.85,186.83,5.55374116]
[1736462924506,2.6761,186.85,186.81,2.6765]
[1736462925104,2.6761,186.85,186.82,5.55765172]
[1736462925405,2.6761,186.85,186.83,5.55765172]
[1736462925806,2.6761,186.85,186.81,2.6765]
[1736462926604,2.6761,186.85,186.82,5.55797175]
[1736462928006,2.6761,186.85,186.83,5.55797175]
[1736462928609,2.6761,186.85,186.81,2.6765]
[1736462929304,2.6761,186.85,186.82,5.56204406]
[1736462929907,2.6761,186.85,186.81,2.6765]
[1736462931409,2.6761,186.85,186.82,5.56158073]
[1736462931910,2.6761,186.85,186.83,5.56158073]
[1736462932708,2.6761,186.85,186.81,2.6765]
[1736462933107,2.6761,186.85,186.82,5.56337773]
[1736462933910,2.6761,186.85,186.83,5.56337773]
[1736462934511,2.6761,186.85,186.81,2.6765]
[1736462934907,2.6761,186.85,186.82,5.56176793]
[1736462935406,2.6761,186.85,186.81,2.6765]
[1736462936612,2.6761,186.85,186.82,5.56274875]
[1736462936911,2.6761,186.85,186.81,2.6765]
[1736462938214,2.6761,186.85,186.82,5.56381682]
[1736462938711,2.6761,186.85,186.81,2.6765]
[1736462939516,2.6761,186.85,186.82,5.56467433]
[1736462940215,2.6761,186.85,186.81,2.6765]
[1736462941214,7.91467442,186.9,186.81,2.6765]
[1736462941519,2.6759,186.86,186.82,5.56291467]
[1736462941916,2.6759,186.86,186.83,5.56291467]
[1736462942920,2.6759,186.86,186.81,10.59117442]
[1736462943618,2.6759,186.86,186.82,5.56342686]
[1736462944420,2.6759,186.86,186.83,5.56342686]
[1736462944918,2.6759,186.86,186.84,5.56342686]
[1736462945723,2.6759,186.86,186.82,2.6764]
[1736462946721,2.6759,186.86,186.83,5.5677842]
[1736462947022,2.6759,186.86,186.84,5.5677842]
[1736462947319,3.153,186.95,186.84,5.5677842]
[1736462947622,2.6758,186.87,186.84,5.5677842]
[1736462947820,2.6758,186.87,186.83,10.59097442]
[1736462949122,2.6758,186.87,186.84,5.56621099]
[1736462949818,2.6758,186.87,186.85,5.56621099]
[1736462950623,2.6758,186.87,186.83,10.59097442]
[1736462951019,2.6758,186.87,186.84,5.56524038]
[1736462951425,2.6758,186.87,186.83,10.59097442]
[1736462952321,2.6758,186.87,186.84,5.56460839]
[1736462952825,2.6758,186.87,186.83,10.59097442]
[1736462953024,2.6758,186.87,186.85,5.56231485]
[1736462953422,2.6758,186.87,186.83,10.59097442]
[1736462954324,2.6758,186.87,186.84,5.56172813]
[1736462955326,2.6758,186.87,186.85,5.56172813]
[1736462955825,2.6758,186.87,186.83,10.59097442]
[1736462956529,2.6758,186.87,186.84,5.56258174]
[1736462957026,2.6758,186.87,186.85,5.56258174]
[1736462957522,2.6758,186.87,186.83,10.59097442]
[1736462957928,2.6758,186.87,186.84,5.56266326]
[1736462958429,2.6758,186.87,186.83,10.59097442]
[1736462959927,2.6758,186.87,186.84,5.56200375]
[1736462960526,2.6758,186.87,186.83,10.59097442]
[1736462961029,2.6759,186.86,186.83,2.6763]
[1736462961637,2.6759,186.86,186.84,5.56272198]
[1736462962237,2.6759,186.86,186.83,2.6763]
[1736462962937,2.6759,186.86,186.8,16.77131377]
[1736462963138,2.6759,186.86,186.82,2.6764]
[1736462963730,2.6759,186.86,186.83,5.56331505]
[1736462964237,2.6759,186.86,186.82,2.6764]
[1736462964533,2.6759,186.86,186.8,4.2012]
[1736462964737,2.6761,186.85,186.8,4.2012]
[1736462964934,2.6761,186.85,186.81,5.56354623]
[1736462965838,2.6761,186.85,186.82,5.56354623]
[1736462966637,2.6761,186.85,186.83,5.56354623]
[1736462967439,2.6761,186.85,186.81,2.6766]
[1736462967840,2.6761,186.85,186.82,5.560948]
[1736462968640,2.6761,186.85,186.83,5.560948]
[1736462969444,2.6761,186.85,186.81,2.6766]
[1736462970343,2.6761,186.85,186.82,5.56385361]
[1736462971244,2.6761,186.85,186.83,5.56385361]
[1736462972044,2.6761,186.85,186.8,4.2013]
[1736462972644,2.6761,186.85,186.81,5.56357014]
[1736462973242,2.6761,186.85,186.82,5.56357014]
[1736462973844,2.6761,186.85,186.83,5.56357014]
[1736462974046,2.6762,186.84,186.83,5.56357014]
[1736462974653,2.6762,186.84,186.8,1.5246]
[1736462975244,2.6765,186.82,186.81,5.55986597]
[1736462976247,7.91467442,186.85,186.78,15.24671377]
[1736462976445,2.6766,186.82,186.78,15.24671377]
[1736462976847,2.6766,186.82,186.79,5.56024004]
[1736462977441,2.6763,186.84,186.79,5.56024004]
[1736462977648,7.91467442,186.85,186.79,5.56024004]
[1736462977851,3.057,186.87,186.75,35.10125741]
[1736462977852,7.91467442,186.83,186.75,35.10125741]
[1736462978047,7.91467442,186.83,186.75,43.01593183]
[1736462978447,7.91467442,186.83,186.76,5.56306882]
[1736462979355,2.6768,186.8,186.77,5.56306882]
[1736462979655,7.91467442,186.83,186.77,5.56306882]
[1736462979843,4.6186,186.87,186.77,5.56306882]
[1736462980043,7.91467442,186.84,186.77,5.56306882]
[1736462980255,7.91467442,186.84,186.75,13.68777442]
[1736462980448,7.91467442,186.84,186.75,5.7731]
[1736462980649,7.91467442,186.84,186.76,7.91467442]
[1736462981142,2.6769,186.79,186.76,7.91467442]
[1736462984457,2.6771,186.78,186.76,7.91467442]
[1736462986956,7.91467442,186.83,186.76,7.91467442]
[1736462987154,2.6772,186.77,186.73,2.6777]
[1736462987359,2.6772,186.77,186.74,7.91467442]
[1736462989158,2.6774,186.76,186.74,7.91467442]
[1736462991153,7.91467442,186.81,186.69,3.0834]
[1736462991360,2.6776,186.74,186.72,7.91467442]
[1736462992057,2.6776,186.74,186.71,7.91467442]
[1736462992662,12.79467442,186.79,186.71,7.91467442]
[1736462992857,2.6778,186.73,186.71,7.91467442]
[1736462993859,2.6778,186.73,186.69,5.7617]
[1736462994067,2.6778,186.73,186.71,7.91467442]
[1736462996062,2.6778,186.73,186.69,5.7617]
[1736462996262,2.6778,186.73,186.7,7.91467442]
[1736462997263,2.6783,186.69,186.68,7.91467442]
[1736462999457,7.91467442,186.75,186.67,7.91467442]
[1736462999660,7.91467442,186.73,186.67,7.91467442]
[1736463002162,2.6783,186.7,186.67,7.91467442]
[1736463003066,2.6784,186.69,186.65,9.92424896]
[1736463003267,7.91467442,186.73,186.66,7.91467442]
[1736463003561,7.91467442,186.71,186.66,7.91467442]
[1736463004963,7.91467442,186.71,186.63,7.91467442]
[1736463005166,7.91467442,186.69,186.63,7.91467442]
[1736463005659,2.6789,186.65,186.62,7.91467442]
[1736463005864,2.6789,186.65,186.62,13.45171581]
[1736463006266,7.91467442,186.66,186.62,5.53704139]
[1736463006467,7.91467442,186.64,186.61,1.6436]
[1736463006662,2.6792,186.63,186.61,1.6436]
[1736463007168,7.91467442,186.64,186.61,1.6436]
[1736463007467,2.6793,186.62,186.61,1.6436]
[1736463010261,2.6793,186.62,186.59,7.91467442]
[1736463010663,2.6793,186.62,186.58,2.6799]
[1736463010866,2.6793,186.62,186.59,7.91467442]
[1736463013372,2.6792,186.63,186.59,7.91467442]
[1736463014972,2.6794,186.62,186.58,2.6799]
[1736463015172,2.6794,186.62,186.6,7.91467442]
[1736463015876,2.6792,186.64,186.6,7.91467442]
[1736463018574,2.6792,186.64,186.63,7.91467442]
[1736463018781,4.6535,186.71,186.63,7.91467442]
[1736463018975,2.6789,186.66,186.63,7.91467442]
[1736463020275,2.6786,186.68,186.63,7.91467442]
[1736463021777,2.6784,186.69,186.63,7.91467442]
[1736463021980,15.93077442,186.71,186.63,7.91467442]
[1736463022684,2.6785,186.68,186.63,10.59377442]
[1736463023384,2.6785,186.68,186.64,2.679]
[1736463024277,2.6784,186.69,186.64,2.679]
[1736463024484,15.93077442,186.71,186.64,2.679]
[1736463026287,2.6785,186.68,186.63,10.59377442]
[1736463028186,2.6786,186.67,186.63,2.6791]
[1736463028386,2.6786,186.67,186.63,10.59377442]
[1736463029287,11.05077442,186.71,186.65,2.6789]
[1736463029484,15.93077442,186.71,186.65,2.6789]
[1736463031083,2.6783,186.69,186.65,2.6789]
[1736463033092,4.88,186.73,186.65,7.91467442]
[1736463033597,2.6778,186.73,186.69,2.6783]
[1736463033999,4.8501,186.79,186.67,7.91467442]
[1736463034192,7.91467442,186.76,186.67,7.91467442]
[1736463034794,2.6777,186.74,186.67,7.91467442]
[1736463035596,2.6777,186.74,186.69,2.6783]
[1736463037602,7.91467442,186.76,186.69,2.6783]
[1736463037801,2.6778,186.73,186.69,2.6783]
[1736463040205,2.6776,186.74,186.7,2.6781]
[1736463040503,2.6776,186.74,186.69,7.91467442]
[1736463040802,2.6776,186.74,186.69,10.59287442]
[1736463043005,7.91467442,186.78,186.69,7.91467442]
[1736463043204,2.6775,186.75,186.71,2.678]
[1736463048711,7.91467442,186.78,186.69,7.91467442]
[1736463048911,7.91467442,186.78,186.72,2.6778]
[1736463050211,2.6773,186.76,186.72,2.6778]
[1736463053613,2.6773,186.76,186.71,7.91467442]
[1736463053920,2.6773,186.76,186.71,10.59267442]
[1736463058514,2.6773,186.76,186.72,2.6779]
[1736463067026,2.6773,186.76,186.71,7.91467442]
[1736463067220,2.6773,186.76,186.73,2.6777]
[1736463067718,2.6772,186.77,186.73,2.6777]
[1736463069522,2.6774,186.76,186.71,2.6779]
[1736463069826,2.6774,186.76,186.7,9.41547442]
[1736463070226,7.91467442,186.79,186.7,9.41547442]
[1736463070430,2.6772,186.77,186.7,9.41547442]
[1736463070624,2.6772,186.77,186.71,5.51769613]
[1736463070824,2.6772,186.77,186.73,2.6777]
[1736463072433,2.6771,186.78,186.74,2.6775]
[1736463075934,2.6771,186.78,186.75,2.6775]
[1736463076339,2.6771,186.78,186.71,7.33203935]
[1736463076638,2.6771,186.78,186.74,2.6776]
[1736463078035,10.59157442,186.79,186.74,2.6776]
[1736463084746,2.6769,186.79,186.74,2.6776]
[1736463088152,2.677,186.78,186.74,2.6776]
[1736463095162,2.677,186.78,186.73,2.6777]
[1736463096158,2.6772,186.77,186.73,2.6777]
[1736463096650,7.91467442,186.74,186.7,7.33203935]
[1736463097262,10.59267442,186.71,186.7,7.33203935]
[1736463097462,7.91467442,186.71,186.69,29.32815741]
[1736463097664,7.91467442,186.71,186.69,16.75865741]
[1736463097958,2.6782,186.7,186.69,16.52015741]
[1736463098359,7.91467442,186.71,186.62,2.6793]
[1736463098662,2.6786,186.67,186.62,2.6793]
[1736463098858,2.6786,186.67,186.61,17.92611377]
[1736463099065,2.6788,186.66,186.63,5.51042026]
[1736463099556,2.6788,186.66,186.61,10.59407442]
[1736463101663,7.91467442,186.67,186.61,7.91467442]
[1736463101860,2.6789,186.65,186.61,7.91467442]
[1736463102062,2.6789,186.65,186.6,2.6796]
[1736463103161,2.6789,186.65,186.61,7.91467442]
[1736463103362,2.6789,186.65,186.6,2.6796]
[1736463105065,2.6791,186.64,186.59,7.91467442]
[1736463107265,2.6792,186.63,186.59,7.91467442]
[1736463108073,2.679,186.65,186.6,2.6796]
[1736463108563,7.91467442,186.67,186.6,2.6796]
[1736463108767,2.6794,186.62,186.58,9.54607442]
[1736463119171,7.91467442,186.65,186.58,1.6314]
[1736463119372,2.6795,186.61,186.58,9.54607442]
[1736463120474,2.6796,186.6,186.58,1.6314]
[1736463122771,7.91467442,186.63,186.58,1.6314]
[1736463122772,2.6795,186.61,186.58,1.6314]
[1736463123776,2.6795,186.61,186.57,1.6256]
[1736463125782,2.6797,186.6,186.57,1.6256]
[1736463126576,2.679,186.64,186.58,10.59447442]
[1736463126881,7.91467442,186.65,186.58,10.59447442]
[1736463127283,2.6794,186.62,186.57,1.6256]
[1736463127484,7.91467442,186.65,186.57,12.22027442]
[1736463129291,2.6795,186.61,186.57,9.54027442]
[1736463133391,2.6797,186.6,186.57,9.54027442]
[1736463134088,2.6798,186.59,186.57,9.54027442]
[1736463135995,2.6798,186.59,186.57,1.6256]
[1736463136392,2.6797,186.6,186.57,1.6256]
[1736463136888,7.91467442,186.64,186.57,1.6256]
[1736463137193,2.6799,186.58,186.55,2.6803]
[1736463139596,7.91467442,186.58,186.52,8.88273935]
[1736463139796,7.91467442,186.58,186.52,7.33203935]
[1736463139993,2.6802,186.56,186.51,47.9674092]
[1736463140197,7.91467442,186.58,186.51,47.9674092]
[1736463140400,7.91467442,186.56,186.51,47.9674092]
[1736463140699,2.6806,186.54,186.51,47.9674092]
[1736463141098,2.6807,186.53,186.5,1.6168]
[1736463141295,2.6807,186.53,186.46,7.33203935]
[1736463141296,7.91467442,186.52,186.46,7.33203935]
[1736463141500,7.91467442,186.48,186.46,3.935e-05]
[1736463141700,2.6815,186.47,186.46,3.935e-05]
[1736463142098,7.91467442,186.48,186.4,178.37414825]
[1736463142099,7.91467442,186.48,186.4,24.80920978]